Cogmind - Beta 14 @@@ ROGUE MODE // 2024.09.03 @ 07:09:50 Player: Helstads_dog Result: Destroyed by H-55 Commando with Assault Rifle Performance ------------- Evolutions (2) 1000 Regions Visited (8) 1600 Robots Destroyed (152) 760 Value Destroyed (4838) 4838 Prototype IDs (39) 780 Alien Tech Used (0) 0 Bonus (1546) 1546 TOTAL SCORE: 10524 Bonus ------- High Alert Combat Kills 439 Follower Combat Kills 238 Entered Garrisons 200 Used RIF Installer 500 Aligned with FarCom 300 Friendly Fire -131 Cogmind --------- Core Integrity 0/550 Matter 195/300 Energy 225/310 System Corruption 0% Temperature Warm (189) Movement Treading (243) Ox1 Location -8/Materials Parts ------- > --- POWER (1) -------- Cooled Deuterium Engine > --- PROPULSION (4) --- Light Treads Light Treads Armored Treads Titanium Leg > --- UTILITY (4) ------ Improved Heat Sink High-capacity Storage Unit Hardened Medium Armor Plating Advanced System Restoration Module > --- WEAPON (2) ------- Wave Gun Minigun > --- INVENTORY (20) --- Cooled Deuterium Engine Heat Sink Heat Sink Improved Cooling System Improved Cooling System Hardened Medium Armor Plating Hardened Medium Armor Plating Hardened Medium Armor Plating Hardened Medium Armor Plating Hardened Medium Armor Plating Hardened Medium Armor Plating Field Recycling Unit (100) Variable Charge Gun Advanced Plasma Cannon Heavy Assault Rifle Gauss Rifle Improved Datajack Improved Plasma Cutter Peak State ------------ > --- POWER ------------ Cooled Deuterium Engine > --- PROPULSION ------- Light Treads Light Treads Light Treads Armored Treads > --- UTILITY ---------- Improved Heat Sink High-capacity Storage Unit Hardened Medium Armor Plating Advanced System Restoration Module > --- WEAPON ----------- Improved Arc Projector Wave Gun > --- INVENTORY -------- Cooled Deuterium Engine Titanium Leg Heat Sink Heat Sink Improved Cooling System Improved Cooling System Hardened Medium Armor Plating Hardened Medium Armor Plating Hardened Medium Armor Plating Hardened Medium Armor Plating Hardened Medium Armor Plating Hardened Medium Armor Plating Field Recycling Unit Variable Charge Gun Advanced Plasma Cannon Heavy Assault Rifle Minigun Gauss Rifle Improved Datajack Improved Plasma Cutter [Rating: 42] Favorites ----------- Power Improved Ion Engine Engine Improved Ion Engine Power Core Light Nuclear Core Propulsion Light Treads Treads Light Treads Leg Aluminum Leg Wheel Wheel Flight Unit Improved Flight Unit Utility Reactive Plating Device Cooling System Storage Large Storage Unit Processor 0b10 Alert Chip Hackware Hacking Suite Protection Reactive Plating Weapon Heavy EM Pulse Gun Energy Gun Heavy EM Pulse Gun Energy Cannon Light EM Pulse Cannon Ballistic Gun High-powered Shotgun Ballistic Cannon Bore Cannon Launcher Mini Grenade Launcher Special Weapon Improved Plasma Cutter Impact Weapon Hammer Slashing Weapon Katana Special Melee Weapon Improved Datajack Build | -11 -10 -9 -9 -9 -8 -8 -8 -8 ------- Run | Yrd Mat Mat Min Exi Min Mat Gar Mat Slots Evolved 4 | . . 2 . . . 2 . . Power . | . . . . . . . . . Propulsion 2 | . . 1 . . . 1 . . Utility 2 | . . 1 . . . 1 . . Weapon . | . . . . . . . . . Parts Attached 186 | 6 18 32 1 6 5 57 59 2 Power 10 | 1 2 2 . . 1 3 1 . Engine 9 | 1 2 2 . . . 3 1 . Core 1 | . . . . . 1 . . . Reactor . | . . . . . . . . . Propulsion 41 | 2 3 11 1 . . 14 9 1 Treads 32 | . 2 10 1 . . 12 7 . Leg 6 | 2 1 . . . . . 2 1 Wheel 1 | . . . . . . 1 . . Hover . | . . . . . . . . . Flight 2 | . . 1 . . . 1 . . Utility 57 | 1 4 10 . 2 . 18 22 . Device 20 | . 2 2 . . . 8 8 . Storage 5 | 1 1 . . . . 1 2 . Processor 7 | . 1 2 . 1 . 1 2 . Hackware 1 | . . . . . . 1 . . Protection 24 | . . 6 . 1 . 7 10 . Artifact . | . . . . . . . . . Weapon 78 | 2 9 9 . 4 4 22 27 1 Energy Gun 45 | 1 4 7 . 2 3 11 17 . Energy Cannon 5 | . 2 . . 1 . 2 . . Ballistic Gun 9 | 1 2 2 . . . . 3 1 Ballistic Cannon 3 | . . . . . . 3 . . Launcher 3 | . . . . . . 1 2 . Special Weapon 1 | . . . . . . . 1 . Impact Weapon 1 | . 1 . . . . . . . Slashing Weapon 7 | . . . . 1 1 4 1 . Piercing Weapon . | . . . . . . . . . Special Melee Weapon 4 | . . . . . . 1 3 . Unidentified Prototypes 9 | . . 3 . 4 . 2 . . Parts Lost 34 | . 1 3 . . 1 10 17 2 Power 1 | . . . . . . . 1 . Propulsion 10 | . . . . . . 2 7 1 Utility 9 | . . 2 . . . 2 5 . Weapon 14 | . 1 1 . . 1 6 4 1 Highest Loss Streak 5 | . 1 2 . . 1 2 5 2 To Critical Strikes . | . . . . . . . . . Average Slot Usage (%) 97 | . 97 98 100 78 99 99 98 99 Engine 9 | . 14 10 11 11 8 8 9 9 Treads 31 | . 8 32 33 33 33 35 35 35 Leg 2 | . 19 . . . . . . . Device 7 | . 11 3 11 6 . 8 10 18 Storage 10 | . 14 11 11 11 11 9 9 9 Processor 6 | . . 9 . 4 11 9 6 . Protection 8 | . . 8 11 10 11 6 9 9 Energy Gun 15 | . 18 21 22 . 21 11 14 17 Energy Cannon 1 | . 2 . . . . 3 . . Ballistic Gun 1 | . 6 . . . . . 2 . Peak Build Rating 42 | 6 11 18 19 25 23 39 42 42 Average Rating 23 | 4 8 15 18 15 22 31 35 41 On Entrance 20 | . 6 11 18 19 23 22 39 42 Naked Turns . | . . . . . . . . . Heaviest Build 76 | 11 32 45 45 45 43 76 76 73 Greatest Support 82 | 20 40 60 60 60 60 82 82 80 Greatest Overweight (x) 7 | 1 1 7 . . . . 1 . Average Overweight (x) . | . . . . . . . . . Largest Inventory Capacity 20 | 8 15 15 15 15 15 20 20 20 Average Capacity 16 | 7 10 15 15 15 15 19 20 20 Most Carried 20 | 4 15 15 15 15 15 20 20 20 Average Carried 15 | 3 9 14 14 14 14 16 18 19 Final Capacity 20 | 8 15 15 15 15 15 20 20 20 Final Carried 20 | 4 15 15 15 15 13 18 20 18 Class Distribution -------------------- 71% | Mutant 28% | Scavenger-Mutant Dominant Class ---------------- Mutant | -10/Materials Mutant | -9/Materials Mutant | -9/Mines Mutant | -9/Exiles Mutant | -8/Mines Mutant | -8/Materials Scavenger-Mutant | -8/Garrison Scavenger-Mutant | -8/Materials Resources | -11 -10 -9 -9 -9 -8 -8 -8 -8 ----------- Run | Yrd Mat Mat Min Exi Min Mat Gar Mat Matter Collected 2678 | 246 282 315 47 138 165 729 756 . Remotely . | . . . . . . . . . Salvage Created 6149 | . 428 2153 67 . 233 1822 1386 60 Parts 367 | . 37 131 6 . 16 98 73 6 Haulers Intercepted 4 | . 2 2 . . . . . . Recyclers Shooed 1 | . . 1 . . . . . . Parts Field Recycled 30 | . . . . . . 30 . . Retrieved Matter 283 | . . . . . . 283 . . Parts Self-Destructed . | . . . . . . . . . Prevented . | . . . . . . . . . Kills | -11 -10 -9 -9 -9 -8 -8 -8 -8 ------- Run | Yrd Mat Mat Min Exi Min Mat Gar Mat Combat Hostiles Destroyed 125 | . 10 40 4 . 7 32 31 1 Guns 98 | . 10 37 1 . 5 15 29 1 Cannons 10 | . . . . . . 10 . . AOE 14 | . . 3 3 . 2 5 1 . Classes Destroyed 17 | . 4 7 . . . 3 3 . Worker 2 | . . 1 . . . 1 . . Builder 1 | . . . . . . 1 . . Hauler 4 | . 2 2 . . . . . . Recycler 3 | . . 3 . . . . . . Operator 5 | . . 3 . . . 2 . . Watcher 11 | . 3 5 . . . 3 . . Swarmer 39 | . 6 11 4 . 5 4 9 . Grunt 48 | . 4 16 . . 3 18 7 . Brawler 4 | . . 1 . . . 2 1 . Duelist 2 | . . 1 . . . 1 . . Protector 1 | . . 1 . . . . . . Sentry 23 | . . 10 . . . 5 7 1 Demolisher 1 | . . . . . . . 1 . Specialist 3 | . . . . . . . 3 . Hunter 1 | . . . . . . 1 . . Programmer 3 | . . . . . . . 3 . Heavy 1 | . . . . . . 1 . . Best Kill Streak 8 | . 4 8 4 . 3 5 3 1 Combat Bots Only 5 | . 3 5 4 . 3 5 3 1 Max Kills in Single Turn 3 | . 2 2 3 . 2 2 1 1 Gunslinging . | . . . . . . . . . Exploded 3 | . . 1 3 . 1 2 1 . Melee . | . . . . . . . . . Uniques/NPCs Destroyed . | . . . . . . . . . Combat | -11 -10 -9 -9 -9 -8 -8 -8 -8 -------- Run | Yrd Mat Mat Min Exi Min Mat Gar Mat Hostile Shots Fired 638 | . 39 123 5 . 36 170 223 42 Missed 162 | . 9 35 1 . 8 49 55 5 Damage Taken 7535 | . 364 1254 20 . 302 2406 2620 569 Core 886 | . 135 154 9 . 36 217 259 76 Absorbed by Shields 38 | . . 38 . . . . . . Ignored by Resistances 400 | . . 27 8 . 51 165 149 . Regen/Repaired (Parts) 438 | . . 360 . . . 78 . . Core Remaining (%) 65 | 100 46 . . . 50 . . . Volleys Fired 398 | . 40 85 2 . 34 127 106 4 Largest 2 | . 2 2 2 . 2 2 2 2 Hottest 146 | . 100 90 90 . 90 120 146 146 Shots Fired 763 | . 77 168 4 . 55 241 210 8 Gun 661 | . 74 168 4 . 55 150 202 8 Cannon 94 | . 3 . . . . 91 . . Launcher 2 | . . . . . . . 2 . Special 6 | . . . . . . . 6 . Kinetic 134 | . 29 5 . . . 51 48 1 Thermal 166 | . 28 . . . . 21 113 4 Explosive 2 | . . . . . . . 2 . Electromagnetic 461 | . 20 163 4 . 55 169 47 3 Robot Hit Streak 25 | . 9 25 1 . 7 12 14 4 Robot Miss Streak 5 | . 5 2 4 . 5 4 4 1 Penetration Max . | . . . . . . . . . Secondary Targets 11 | . . 4 . . 1 . 6 . Max Gunslinging Chain 1 | . . 1 . . 1 . 1 . Shots Hit Robots 546 | . 40 129 1 . 33 163 174 6 Core Hits 276 | . 24 90 4 . 14 74 68 2 Critical Kills 5 | . . . . . . 3 2 . Critical Parts Destroyed 6 | . . . . . . 6 . . Critical Strikes 22 | . . . . . 1 11 10 . Burn 7 | . . . . . . 1 6 . Destroy 11 | . . . . . . 9 2 . Corrupt 2 | . . . . . 1 1 . . Sever 2 | . . . . . . . 2 . Melee Attacks 49 | . 1 . . . 2 23 23 . Impact 1 | . 1 . . . . . . . Slashing 34 | . . . . . 2 18 14 . Piercing . | . . . . . . . . . Sneak Attacks 14 | . . . . . . 5 9 . Combat Hostiles 6 | . . . . . . . 6 . Follow-up Attacks . | . . . . . . . . . Damage Inflicted 10090 | . 533 2227 143 . 546 3057 3484 100 Guns 7337 | . 499 1946 48 . 425 1705 2614 100 Cannons 1087 | . 34 . . . . 1053 . . Explosions 1010 | . . 266 95 . 121 299 229 . Melee 641 | . . . . . . . 641 . Ramming 15 | . . 15 . . . . . . Kinetic 1585 | . 146 75 . . . 425 922 17 Thermal 2717 | . 221 266 95 . 121 642 1324 48 Explosive 87 | . . . . . . . 87 . Electromagnetic 5045 | . 166 1871 48 . 425 1990 510 35 Impact . | . . . . . . . . . Slashing 641 | . . . . . . . 641 . Piercing . | . . . . . . . . . Highest Corruption 9 | . 1 8 8 8 9 4 7 . Average Corruption 6 | . 1 4 8 8 8 4 5 . Corruption Purged 7 | . . . . . . . 7 . Corruption Blocked . | . . . . . . . . . Effects 180 | . 6 13 29 31 40 3 58 . Message Errors 40 | . 1 3 5 8 10 3 10 . Matter Fused 48 | . 2 3 8 7 13 . 15 . Heat Flow Errors 12 | . . 1 4 3 . . 4 . Energy Discharges 24 | . . 1 6 7 2 . 8 . Parts Rejected 3 | . . . . . 1 . 2 . Parts Fused 1 | . . . . . 1 . . . Data Loss (minor) 30 | . 2 2 5 4 6 . 11 . Data Loss (major) 6 | . . 1 . 2 1 . 2 . Misfires 10 | . 1 2 . . 3 . 4 . Alerts 5 | . . . 1 . 2 . 2 . Weapon Failures 1 | . . . . . 1 . . . Overload Shots . | . . . . . . . . . Overflow Damage 82 | . . 44 . . . 21 17 . Projectiles 21 | . . . . . . 21 . . Explosions 59 | . . 44 . . . . 15 . Melee 2 | . . . . . . . 2 . Knockbacks 8 | . . . . . . 8 . . Impact . | . . . . . . . . . Kinetic 8 | . . . . . . 8 . . Secondary . | . . . . . . . . . Self-Inflicted Damage 329 | . . 141 . . 21 81 86 . Shots 9 | . . 4 . . 1 2 2 . Rammed 1 | . . 1 . . . . . . Targets Rammed 2 | . . 2 . . . . . . Kicked . | . . . . . . . . . Crushed 1 | . . 1 . . . . . . Highest Temperature 283 | . 81 274 169 249 207 283 266 223 Average Temperature 64 | . 31 56 84 119 54 69 68 140 Received Heat Transfer 2109 | . 105 324 . . 84 846 615 135 Effects 3 | . . . . . . 2 1 . Energy Bleed 1 | . . . . . . . 1 . Interference 2 | . . . . . . 2 . . Siege Activations . | . . . . . . . . . Robots Corrupted 2 | . . . . . . 2 . . Combat Hostiles 2 | . . . . . . 2 . . Parts Fried 23 | . . 7 . . . 12 4 . Impact Corruptions . | . . . . . . . . . Robots Melted 1 | . . . . . . . 1 . Combat Hostiles 1 | . . . . . . . 1 . Parts Melted 7 | . 1 . . . . . 5 1 Heat Transferred 5070 | . 499 300 100 . 100 1077 2920 74 Parts Sabotaged . | . . . . . . . . . Parts Stolen . | . . . . . . . . . Parts Stripped . | . . . . . . . . . Power Chain Reactions 19 | . . 6 1 . 3 6 3 . Alert | -11 -10 -9 -9 -9 -8 -8 -8 -8 ------- Run | Yrd Mat Mat Min Exi Min Mat Gar Mat Peak Influence 1354 | . 210 635 347 . 160 373 1354 762 Initial 659 | . . 8 247 . . 5 206 659 Average 293 | . 66 293 166 . 47 144 697 707 Maximum Alert Level 4 | . 1 2 1 . . 1 4 3 Low Security (%) 49 | 100 93 35 58 . 100 67 . . Level 1 24 | . 6 29 41 . . 32 24 . Level 2 12 | . . 34 . . . . 20 22 Level 3 11 | . . . . . . . 42 77 Level 4 2 | . . . . . . . 11 . Level 5 . | . . . . . . . . . High Security . | . . . . . . . . . Max Security . | . . . . . . . . . Squads Dispatched 16 | . 2 5 . . 1 5 . 3 Investigation 6 | . . 2 . . 1 2 . 1 Extermination . | . . . . . . . . . Reinforcement 9 | . 2 2 . . . 3 . 2 Assault 1 | . . 1 . . . . . . Garrison . | . . . . . . . . . Intercept . | . . . . . . . . . Searches Triggered . | . . . . . . . . . Construction Impeded 1 | . . . . . . 1 . . Haulers Reinforced . | . . . . . . . . . Active Scanning Responses . | . . . . . . . . . Cargo Convoy Interrupts . | . . . . . . . . . Stealth | -11 -10 -9 -9 -9 -8 -8 -8 -8 --------- Run | Yrd Mat Mat Min Exi Min Mat Gar Mat Distress Signals 5 | . 1 2 . . . 1 . 1 Communications Jammed . | . . . . . . . . . Distress Signals . | . . . . . . . . . Times Spotted 175 | . 20 53 4 . 14 42 37 5 Peak Tracking Total 5 | . 4 5 4 . 4 5 4 4 Tactical Retreats 9 | . 2 1 . . 2 2 2 . Traps | -11 -10 -9 -9 -9 -8 -8 -8 -8 ------- Run | Yrd Mat Mat Min Exi Min Mat Gar Mat Traps Triggered 10 | . 4 4 . . . 1 1 . Indirectly . | . . . . . . . . . Trap Hack Attempts . | . . . . . . . . . Triggered . | . . . . . . . . . Disarmed . | . . . . . . . . . Reprogrammed . | . . . . . . . . . Reused . | . . . . . . . . . Traps Extracted . | . . . . . . . . . Installed . | . . . . . . . . . Triggered . | . . . . . . . . . Machines | -11 -10 -9 -9 -9 -8 -8 -8 -8 ---------- Run | Yrd Mat Mat Min Exi Min Mat Gar Mat Machines Disabled 11 | . . 4 . . . 4 2 1 Max in Single Turn 1 | . . 1 . . . 1 1 . Garrison Relay 1 | . . . . . . . 1 . Phase Generator 1 | . . . . . . . 1 . Machines Repaired . | . . . . . . . . . Machines Dismantled 1 | . . . . . . . 1 . Machines Sabotaged . | . . . . . . . . . Overloaded Fab Kills . | . . . . . . . . . Hacking | -11 -10 -9 -9 -9 -8 -8 -8 -8 --------- Run | Yrd Mat Mat Min Exi Min Mat Gar Mat Machines Accessed 44 | . 7 14 . 5 1 13 3 1 Terminals 26 | . 5 9 . . 1 7 3 1 Fabricators . | . . . . . . . . . Repair Stations 4 | . . 2 . . . 2 . . Recycling Units 5 | . 2 1 . . . 2 . . Scanalyzers 3 | . . 2 . . . 1 . . Garrison Access 1 | . . . . . . 1 . . Total Hacks 171 | . 21 47 . 50 3 41 7 2 Successful 118 | . 7 30 . 50 2 28 . 1 Failed 51 | . 14 16 . . 1 12 7 1 Catastrophic 5 | . . 2 . . . 1 2 . Database Lockouts 2 | . . 1 . . . 1 . . Manual 70 | . 13 24 . 1 . 26 4 2 Terminals 84 | . 17 32 . . 3 23 7 2 Fabricators . | . . . . . . . . . Repair Stations 12 | . . 6 . . . 6 . . Recycling Units 12 | . 4 1 . . . 7 . . Scanalyzers 11 | . . 8 . . . 3 . . Garrison Access 2 | . . . . . . 2 . . Terminal Hacks 74 | . 1 10 . 50 2 10 . 1 Record 52 | . . . . 49 2 . . 1 Robot Analysis 2 | . . 1 . . . 1 . . Prototype ID Bank 9 | . . 5 . . . 4 . . Branch Access Points 1 | . . . . . . 1 . . Alert Level 2 | . . 2 . . . . . . Unreport Threat 1 | . . 1 . . . . . . Locate Traps 4 | . 1 1 . . . 2 . . Dispatch Records 1 | . . . . . . 1 . . Maintenance Status 1 | . . . . . . 1 . . Derelict Proto ID Bank 1 | . . . . 1 . . . . Fabricator Hacks . | . . . . . . . . . Repair Station Hacks 11 | . . 6 . . . 5 . . Scan Component 6 | . . 3 . . . 3 . . Repair 5 | . . 3 . . . 2 . . Recycling Unit Hacks 5 | . 2 . . . . 3 . . Process 1 | . . . . . . 1 . . Report Inventory 4 | . 2 . . . . 2 . . Scanalyzer 10 | . . 7 . . . 3 . . Insert Component 4 | . . 3 . . . 1 . . Analyze 6 | . . 4 . . . 2 . . Garrison Access Hacks 2 | . . . . . . 2 . . Unlock Access 1 | . . . . . . 1 . . Coupler Status 1 | . . . . . . 1 . . Unauthorized Hacks 16 | . 4 7 . . . 5 . . Terminals 12 | . 3 6 . . . 3 . . Assimilate 1 | . . 1 . . . . . . Botnet 11 | . 3 5 . . . 3 . . Fabricators . | . . . . . . . . . Repair Stations . | . . . . . . . . . Recycling Units 4 | . 1 1 . . . 2 . . Mask 4 | . 1 1 . . . 2 . . Scanalyzers . | . . . . . . . . . Garrison Access . | . . . . . . . . . Data Cores Recovered 2 | . . 1 . . . 1 . . Used 1 | . . 1 . . . . . . Hacking Detections 35 | . 6 13 . . 1 11 3 1 Full Trace Events 6 | . . 1 . . 1 3 1 . Feedback Events 1 | . . . . . 1 . . . Corruption 1 | . . . . . 1 . . . Feedback Blocked . | . . . . . . . . . Robot Schematics Acquired . | . . . . . . . . . Robots Built . | . . . . . . . . . Authchips . | . . . . . . . . . Time . | . . . . . . . . . Total Robot Build Rating . | . . . . . . . . . Part Schematics Acquired 4 | . . 3 . . . 1 . . Parts Built . | . . . . . . . . . Authchips . | . . . . . . . . . Time . | . . . . . . . . . Total Part Build Rating . | . . . . . . . . . Parts Repaired 4 | . . 3 . . . 1 . . Time 157 | . . 78 . . . 79 . . Parts Recycled . | . . . . . . . . . Recycled Matter 414 | . . . . . . 414 . . Retrieved Matter . | . . . . . . . . . Retrieved Components . | . . . . . . . . . Parts Scanalyzed 4 | . . 3 . . . 1 . . Part Schematics Acquired 4 | . . 3 . . . 1 . . Parts Damaged . | . . . . . . . . . Bothacking | -11 -10 -9 -9 -9 -8 -8 -8 -8 ------------ Run | Yrd Mat Mat Min Exi Min Mat Gar Mat Used RIF Installer 1 | . . . . . . . 1 . Robots Hacked 2 | . . . . . . 2 . . Non-combat 2 | . . . . . . 2 . . Combat . | . . . . . . . . . Robot Hacks Applied 5 | . . . . . . 5 . . parse_system 2 | . . . . . . 2 . . no_distress 1 | . . . . . . 1 . . find_recycling 1 | . . . . . . 1 . . check_alert 1 | . . . . . . 1 . . Relay Couplers Released 3 | . . . . . . . 3 . Machine Destruction 3 | . . . . . . . 3 . Fabnet Peak Effective % . | . . . . . . . . . Robots Rewired 3 | . . . . . . . 3 . Allies Hacked . | . . . . . . . . . Hacks Repelled . | . . . . . . . . . Allies | -11 -10 -9 -9 -9 -8 -8 -8 -8 -------- Run | Yrd Mat Mat Min Exi Min Mat Gar Mat Total Allies 8 | . . . 5 . . . 3 . Largest Group 5 | . . . 5 5 3 . 3 3 Highest-Rated Group 130 | . . . 81 81 40 . 130 130 Highest-Rated Ally 85 | . . . 31 31 16 . 85 85 Total Orders 5 | . . . . . . . 4 1 STAY 1 | . . . . . . . 1 . ROAM 2 | . . . . . . . 1 1 FOLLOW 1 | . . . . . . . 1 . GUARD 1 | . . . . . . . 1 . Ally Attacks 66 | . . . 2 . 45 . 2 17 Total Damage 1198 | . . . . . 439 . 42 717 Kills 16 | . . . . . 7 . 1 8 Allies Corrupted . | . . . . . . . . . Allies Melted . | . . . . . . . . . Intel | -11 -10 -9 -9 -9 -8 -8 -8 -8 ------- Run | Yrd Mat Mat Min Exi Min Mat Gar Mat Robot Analysis Total 2 | . . 1 . . . 1 . . Derelict Logs Recovered 2 | . . . 2 . . . . . Drone Launches . | . . . . . . . . . Drone Recoveries . | . . . . . . . . . Exploration | -11 -10 -9 -9 -9 -8 -8 -8 -8 ------------- Run | Yrd Mat Mat Min Exi Min Mat Gar Mat Turns Passed 12863 | 69 1304 2518 962 1122 1189 2845 2645 209 Spaces Moved 6430 | 46 761 1176 548 692 589 1303 1214 101 Core 3 | 3 . . . . . . . . Treads 5825 | . 204 1174 548 692 589 1303 1214 101 Legs 600 | 43 557 . . . . . . . Wheels . | . . . . . . . . . Hover . | . . . . . . . . . Flight 2 | . . 2 . . . . . . Fastest Speed 50 | 50 120 160 160 160 160 158 158 162 Average Speed 157 | 123 134 160 160 160 160 161 164 162 Slowest Speed 570 | 190 190 570 160 160 160 162 246 162 Overloaded Moves . | . . . . . . . . . Propulsion Burnouts . | . . . . . . . . . Robots Hopped . | . . . . . . . . . Cave-ins Triggered 1 | . . . . . . 1 . . Exploration Rate (%) 75 | 3 95 98 100 94 100 82 93 14 Regions Visited 8 Branch Regions 3 Pre-discovered Areas 2 | . . . 1 1 . . . . Known Exits Taken 4 | . 1 1 . . 1 1 . . Unknown Exits Taken 3 | 1 . . 1 1 . . . . Scrap Searched 3 | . . . 2 . 1 . . . Spaces Dug 20 | . 1 . . . 1 18 . . Terrain Destroyed 140 | . 1 17 . . 11 84 25 2 Melee 20 | . 1 . . . 1 18 . . Projectile 26 | . . . . . . 24 . 2 AOE 94 | . . 17 . . 10 42 25 . Terrain Rammed . | . . . . . . . . . Walls Destroyed . | . . . . . . . . . Machines Disabled . | . . . . . . . . . Actions | -11 -10 -9 -9 -9 -8 -8 -8 -8 --------- Run | Yrd Mat Mat Min Exi Min Mat Gar Mat Total 8318 | 55 963 1647 630 708 779 1776 1621 139 Wait 1018 | . 115 297 78 2 149 201 144 32 Move 6421 | 45 760 1175 547 691 588 1301 1213 101 Hop . | . . . . . . . . . Pick Up 107 | 4 18 21 1 . . 36 27 . Fast Attach 47 | 6 5 13 . 6 1 5 11 . Attach 62 | . 4 9 1 . 2 22 22 2 Detach 14 | . . 4 . 2 . 4 4 . Swap 77 | . 9 10 . . 2 30 26 . Drop 98 | . 11 31 1 6 1 26 22 . Fire 398 | . 40 85 2 . 34 127 106 4 Melee 49 | . 1 . . . 2 23 23 . Ram . | . . . . . . . . . Kick . | . . . . . . . . . Crush 2 | . . 2 . . . . . . Escape Stasis 1 | . . . . . . 1 . . Rewire 16 | . . . . 1 . . 15 . Trap . | . . . . . . . . . Miscellaneous 8 | . . . . . . . 8 . Route ------- -11/Scrapyard -10/Materials (discovered 3 exits: *Mat x2 / *Min) -9/Materials (discovered 4 exits: *Mat x3 / *Min) -9/Mines (discovered 3 exits: *Mat x2 / *Exi) -9/Exiles (discovered 2 exits: *Min x2) -8/Mines (discovered 2 exits: *Mat x2) -8/Materials (discovered 4 exits: *Fac x2 / Sto / Gar) -8/Garrison (discovered 3 exits: *Mat x3) -8/Materials History --------- Turn | Location | Event 5 | -11/Scrapyard | Discovered new exit (range 15) 70 | -11/Scrapyard | Entered Materials 300 | -10/Materials | Build established: Mutant 609 | -10/Materials | Discovered new exit (range 12) 707 | -10/Materials | Discovered new exit (range 10) 724 | -10/Materials | Identified exit to Materials 776 | -10/Materials | Identified exit to Mines 1173 | -10/Materials | Core integrity fell below 50% 1286 | -10/Materials | Discovered exit to Materials (range 8) 1374 | -10/Materials | Entered another Materials area 1374 | -9/Materials | Evolved 2 slots: Propulsion x1, Utility x1 2003 | -9/Materials | Discovered new exit (range 16) 2138 | -9/Materials | Build established: Scavenger-Mutant 2328 | -9/Materials | Repaired Lgt. Treads 2355 | -9/Materials | Repaired Lgt. Treads 2513 | -9/Materials | Repaired Lgt. Treads 2738 | -9/Materials | Discovered new exit (range 15) 2787 | -9/Materials | Identified exit to Materials 2964 | -9/Materials | Identified exit to Mines 3264 | -9/Materials | Build established: Mutant 3284 | -9/Materials | Discovered exit to Materials (range 14) 3512 | -9/Materials | Central database locked down 3572 | -9/Materials | Discovered exit to Materials (range 11) 3774 | -9/Materials | First assault squad dispatched 3892 | -9/Materials | Entered Mines 3917 | -9/Mines | Learned location of Storage (-8) 4287 | -9/Mines | Discovered exit to Materials (range 5) 4370 | -9/Mines | Learned location of 1 exit from Materials 4639 | -9/Mines | Learned Materials non-interactive machine intel 4674 | -9/Mines | Assisted by bots powering up and referring to "LRC-V3" 4686 | -9/Mines | Discovered exit to Materials (range 6) 4721 | -9/Mines | A weapon hastily lodged in a ceiling crevice suddenly fell to the ground 4834 | -9/Mines | Deemed a non-threat by the Exiles lab entrance 4834 | -9/Mines | Discovered new exit (range 5) 4854 | -9/Mines | Entered Exiles 4854 | -9/Exiles | Accompanied by 5 allies 4884 | -9/Exiles | Led the pair of lost Derelicts to a safe place 4894 | -9/Exiles | Met 8R-AWN 4921 | -9/Exiles | Met EX-HEX 5119 | -9/Exiles | Met EX-DEC 5179 | -9/Exiles | Visited The Gauntlet 5415 | -9/Exiles | Met EX-BIN 5438 | -9/Exiles | Aligned with FarCom system 5439 | -9/Exiles | Given EX-Vault access code 5534 | -9/Exiles | Opened EX-Vault 5538 | -9/Exiles | Found Prototype Slashing Weapon 5538 | -9/Exiles | Identified Longsword +1 5544 | -9/Exiles | Found Prototype Processor 5544 | -9/Exiles | Identified 0b10 Alert Chip 5550 | -9/Exiles | Found Prototype Energy Cannon 5550 | -9/Exiles | Identified Gui. Plasma Cannon 5594 | -9/Exiles | Warned to stay clear of 0b10 Research branches 5643 | -9/Exiles | Learned location of Zion (-6) 5741 | -9/Exiles | Discovered new exit (range 14) 5955 | -9/Exiles | Discovered new exit (range 14) 5976 | -9/Exiles | Left Exiles lab with 0b10 Alert Chip 5976 | -9/Exiles | Entered Mines 5976 | -8/Mines | Accompanied by 3 allies 6133 | -8/Mines | Discovered exit to Materials (range 9) 6376 | -8/Mines | Discovered exit to Materials (range 8) 7165 | -8/Mines | Entered Materials 7165 | -8/Materials | Evolved 2 slots: Propulsion x1, Utility x1 7166 | -8/Materials | Identified exit to Storage 7167 | -8/Materials | Loaded intel: 40 non-interactive machine locations 7475 | -8/Materials | Build established: Scavenger-Mutant 7587 | -8/Materials | Central database locked down 7852 | -8/Materials | Identified exit to Garrison 8005 | -8/Materials | Build established: Mutant 8176 | -8/Materials | Discovered new exit (range 11) 8415 | -8/Materials | Identified exit to Factory 8472 | -8/Materials | Repaired Lgt. Treads 8937 | -8/Materials | Discovered exit to Factory (range 12) 9936 | -8/Materials | Crushed by falling debris 10010 | -8/Materials | Entered Garrison 10076 | -8/Garrison | Triggered checkpoint 10220 | -8/Garrison | Triggered checkpoint 10401 | -8/Garrison | Discovered new exit (range 10) 10416 | -8/Garrison | Identified exit to Materials 10438 | -8/Garrison | Triggered checkpoint 10484 | -8/Garrison | Triggered checkpoint 10526 | -8/Garrison | Lost 3 parts (2u1w) 10700 | -8/Garrison | Triggered checkpoint 10706 | -8/Garrison | Core integrity fell below 50% 10758 | -8/Garrison | Phase Generator disabled 10836 | -8/Garrison | Triggered checkpoint 10972 | -8/Garrison | Lost 5 parts (2n2u1w) 11104 | -8/Garrison | Discovered exit to Materials (range 7) 11160 | -8/Garrison | Build established: Scavenger-Mutant 11262 | -8/Garrison | Triggered checkpoint 11530 | -8/Garrison | Triggered checkpoint 11701 | -8/Garrison | Discovered exit to Materials (range 9) 11718 | -8/Garrison | Installed Relay Interface Framework 11780 | -8/Garrison | Triggered checkpoint 11792 | -8/Garrison | Core integrity fell below 20% 11819 | -8/Garrison | Lost 3 parts (1n1u1w) 11957 | -8/Garrison | Spotted B-75 Beast 11976 | -8/Garrison | Rewired B-75 Beast 12655 | -8/Garrison | Entered Materials 12655 | -8/Materials | Accompanied by 3 allies 12864 | -8/Materials | Destroyed by H-55 Commando with Assault Rifle Last Messages --------------- 12717_ K-01 Serf collects debris. 12726_ K-01 Serf cleans the Electrolysis Chamber. 12749_ ALERT: Hostile activity reported, dispatching reinforcements to area. 12817_ Penetrated by Slug. 12843_ Slug penetrates Wall. 12854_ Critical hit (Burn: +37). 12855_ Penetrated by Slug. 12856_ Critical hit (Burn: +37). 12857_ Penetrated by Slug. 12857_ Electrolysis Chamber disabled. 12857_ Lgt. Treads destroyed. 12858_ Penetrated by Slug. 12859_ Imp. Arc Projector destroyed. 12860_ Penetrated by Slug. 12860_ Electrolysis Chamber disabled. 12861_ Penetrated by Slug. 12862_ Heat Sink melted. 12862_ Y-45 Defender destroyed. 12862_ Penetrated by Slug. Map ----- +----------------------------------------------------+ | ????????????????????????????????????????????# #? | | ?????????????????????????? ???????????????+ #? | | ?????????????????????????? "??????????????# #? | | ?????????????????????????? "??????????????# #? | | ?????????????????????????? ???????######## ## | | ?????????????????????????? ???????# # # | | ?????????????????????????? #???????# # # | | ?????????????????????????? #???????# + T # | | ?????????????????????????# #???????# # # | | ?????????????????????????# ######### # # | | ?????????????????????????# ## # ## ## | | ?????????????????????????# ## """ # ## # | | ?????????????????????????# ## """ # ## # | | ?????????????????????????# ## """ # ## + | | ?????????????????????????# ## # ## # | | ?????????????????????????# ## == # + #] | | ?????????????????????????# ## = ######## #? | | ?????????????????????????# ## #??######+### | | ?????????????????????????# ## #??# ! ! | | ?????????????????????????# ## """ #??#[ | | ?????????????????????????# ## """ #??# | | ???????????????########### ## """ #??# ! | | ???????????????# #hx ##* #### | | ???????????????# *=[ #####+;;;;;# """ """ | | ???????????????# !%x # """ """ | | ???????????????# @[ # """ """ | | ???????????????# # ########## | | ???????????????# """ ##########;;;;;##???????? | | ???????????????# "" """ #????????#######????????? | | ???????????????# """ """ #???????????????????????? | | ????????????????##########???????????????????????? | | | | | | | | | | | | | | | | | | | | | | | | | | | | | | | | | | | | | | | +----------------------------------------------------+ Best States ------------- Heat Dissipation 53 Energy Generation 18 Energy Capacity 310 Matter Stores 300 Matter Capacity 300 Sight Range 16 Terrain Scan Density 10 Armor Coverage 450 Resistance: KI 20 Evasion (%) 55 Targeting Accuracy 6 Recoil Reduction 4 Offensive Hacking 10 Item Schematics ----------------- Lgt. Treads | -9/Materials | Scanalyzed Cooling System | -9/Materials | Scanalyzed Ion Engine | -9/Materials | Scanalyzed Arm. Treads | -8/Materials | Scanalyzed Robot Schematics ------------------ None Fabricated ------------ Nothing Alien Tech Used ----------------- None Achievements -------------- Part-time Excavator Challenges ------------ None Game ------ Seed XenonSwarmAccelerator Manual? 0 Play Time 03:13:57 Cumulative 28.9 hours Start 2024.09.03 @ 02:56:33 End 2024.09.03 @ 07:09:50 Sessions 1 Manual Loads 0 Difficulty Rogue Special Mode None Game No. 17 Rogue 17 Adventurer 0 Explorer 0 Win Type - Total 0 Types 0/0/0/0/0/0/0/0/0 Lore% 13 Gallery% 19 Achievement% 31 Wizard Run 0 Options --------- Layout 0 ASCII 0 Keyboard 0 Movement Mouse Keybinds 0 Fullscreen 1 Font 16/SmallcapsGlow Map View 37x27 Zoom Use 86% Tactical HUD 1 Map Filters NONE Filters NONE Steam 1 RUN: 65c4e362-20f9-4bdf-acae-514ee29a8c6d